Workbook

Sheet Nov
C1: Månedsrapport
B2: Navn: | K2: Måned: | M2: =CHOOSE(M3,"Jan","Feb","Mar","Apr","Maj") -> Feb | P2: År : | Q2: 2021
M3: 2
A4: Uge | B4: Dag | C4: Dato | D4: Planl. Møde tid Fra - Til | F4: Faktisk Møde Tid. Fra-Til | H4: Plan lagte timer | I4: Udf. Tim. Dag | J4: Udf. Tim. A/N | K4: Afsp. Tim. | L4: Ku. Tim. | M4: Till. A/N | N4: Till Week- End | O4: Extra Tim. | P4: Timer 50% Tillæg | Q4: Timer 100% Tillæg | R4: Syg / Barn S/ Barsel | S4: Ferie Timer | T4: Ferie Fri Timer
A5: =_xlfn.ISOWEEKNUM(C5) -> 7 | B5: =CHOOSE(WEEKDAY(C5,11),"man", "Tirs","Ons","Tors","FRE","Lør","søn") -> Tirs | C5: =DATE(Q2,M3,16) -> 2017-02-15 | D5: 07:45:00 | E5: 16:00:00 | F5: 07:45:00 | G5: 12:00:00 | H5: =E5-D5 -> 08:15:00 | I5: =G5-F5 -> 04:15:00 | K5: =I5-H5 -> -0.1666666667 | M5: =ColTime(T!$H$5,T!$H$6,F5,G5) -> 0 | P5: =IF(I5-H5<0," ",I5-H5) ->  | Q5: =IF(V5-I5<0,"",V5-I5) -> 0 | V5: =IF(G5=F5," ",IF(G5<F5,(((0-F5))+((G5)))+24,(G5-F5))) -> 0.1770833333
A6: =IF(WEEKDAY(C6,11)=1,_xlfn.ISOWEEKNUM(C6),"") ->  | B6: =CHOOSE(WEEKDAY(C6,11),"man", "Tirs","Ons","Tors","FRE","Lør","søn") -> Ons | C6: =C5+1 -> 2017-02-16 | D6: 07:45:00 | E6: 16:00:00 | F6: 07:45:00 | G6: 18:15:00 | H6: =E6-D6 -> 08:15:00 | I6: =G6-F6 -> 10:30:00 | K6: =I6-H6 -> 02:15:00 | M6: =ColTime(T!$H$5,T!$H$6,F6,G6) -> 0.05208333333 | P6: =IF(I6-H6<0," ",I6-H6) -> 0.09375 | Q6: =IF(V6-I6<0,"",V6-I6) -> 0 | V6: =IF(G6=F6," ",IF(G6<F6,(((0-F6))+((G6)))+24,(G6-F6))) -> 0.4375
A7: =IF(WEEKDAY(C7,11)=1,_xlfn.ISOWEEKNUM(C7),"") ->  | B7: =CHOOSE(WEEKDAY(C7,11),"man", "Tirs","Ons","Tors","FRE","Lør","søn") -> Tors | C7: =C6+1 -> 2017-02-17 | D7: 07:45:00 | E7: 18:00:00 | F7: 07:45:00 | G7: 20:00:00 | H7: =E7-D7 -> 10:15:00 | I7: 12:15:00 | K7: 02:00:00 | M7: =ColTime(T!$H$5,T!$H$6,F7,G7) -> 0.125 | P7: =IF(I7-H7<0," ",I7-H7) -> 0.08333333333 | Q7: 0 | V7: =IF(G7=F7," ",IF(G7<F7,(((0-F7))+((G7)))+24,(G7-F7))) -> 0.5104166667
B8: =CHOOSE(WEEKDAY(C8,11),"man", "Tirs","Ons","Tors","FRE","Lør","søn") -> FRE | C8: 2017-02-18 | I8: =IF(E8=D8," ",IF(E8<D8,(((0-D8)*24)+((E8)*24))+24,(E8-D8)*24)) ->  | K8: =IF(OR(F8="",G8=""),"",IF(V8-I8>0," ",V8-I8)) ->  | M8: =ColTime(T!$H$5,T!$H$6,F8,G8) -> 0 | P8: =IF(OR(F8="",G8=""),"",IF(V8-I8<0,"",V8-I8)) ->  | Q8: =IF(OR(F8="",G8=""),"",IF(V8-I8<0,"",V8-I8)) ->  | V8: =IF(G8=F8," ",IF(G8<F8,(((0-F8))+((G8)))+24,(G8-F8))) -> 
B9: Lør | C9: 2017-02-19 | K9: =IF(OR(F9="",G9=""),"",IF(V9-I9>0," ",V9-I9)) ->  | M9: =ColTime(T!$H$5,T!$H$6,F9,G9) -> 0 | P9: =IF(OR(F9="",G9=""),"",IF(V9-I9<0,"",V9-I9)) ->  | Q9: =IF(OR(F9="",G9=""),"",IF(V9-I9<0,"",V9-I9)) -> 
B10: søn | C10: 2017-02-20 | K10: =IF(OR(F10="",G10=""),"",IF(V10-I10>0," ",V10-I10)) ->  | M10: =ColTime(T!$H$5,T!$H$6,F10,G10) -> 0 | P10: =IF(OR(F10="",G10=""),"",IF(V10-I10<0,"",V10-I10)) ->  | Q10: =IF(OR(F10="",G10=""),"",IF(V10-I10<0,"",V10-I10)) -> 
A11: 8 | B11: man | C11: 2017-02-21 | M11: =ColTime(T!$H$5,T!$H$6,F11,G11) -> 0
B12: Tirs | C12: 2017-02-22 | M12: =ColTime(T!$H$5,T!$H$6,F12,G12) -> 0
B13: Ons | C13: 2017-02-23 | M13: =ColTime(T!$H$5,T!$H$6,F13,G13) -> 0
B14: Tors | C14: 2017-02-24 | M14: =ColTime(T!$H$5,T!$H$6,F14,G14) -> 0
B15: FRE | C15: 2017-02-25 | M15: =ColTime(T!$H$5,T!$H$6,F15,G15) -> 0
B16: Lør | C16: 2017-02-26 | M16: =ColTime(T!$H$5,T!$H$6,F16,G16) -> 0
B17: søn | C17: 2017-02-27 | M17: =ColTime(T!$H$5,T!$H$6,F17,G17) -> 0
A18: 9 | B18: man | C18: 2017-02-28 | M18: =ColTime(T!$H$5,T!$H$6,F18,G18) -> 0
B19: Tirs | C19: 2017-03-01 | M19: =ColTime(T!$H$5,T!$H$6,F19,G19) -> 0
B20: Ons | C20: 2017-03-02 | M20: =ColTime(T!$H$5,T!$H$6,F20,G20) -> 0
B21: Tors | C21: 2017-03-03 | M21: =ColTime(T!$H$5,T!$H$6,F21,G21) -> 0
B22: FRE | C22: 2017-03-04 | M22: =ColTime(T!$H$5,T!$H$6,F22,G22) -> 0
B23: Lør | C23: 2017-03-05 | M23: =ColTime(T!$H$5,T!$H$6,F23,G23) -> 0
B24: søn | C24: 2017-03-06 | M24: =ColTime(T!$H$5,T!$H$6,F24,G24) -> 0
A25: 10 | B25: man | C25: 2017-03-07 | M25: =ColTime(T!$H$5,T!$H$6,F25,G25) -> 0
B26: Tirs | C26: 2017-03-08 | M26: =ColTime(T!$H$5,T!$H$6,F26,G26) -> 0
B27: Ons | C27: 2017-03-09 | M27: =ColTime(T!$H$5,T!$H$6,F27,G27) -> 0
B28: Tors | C28: 2017-03-10 | M28: =ColTime(T!$H$5,T!$H$6,F28,G28) -> 0
B29: FRE | C29: 2017-03-11 | M29: =ColTime(T!$H$5,T!$H$6,F29,G29) -> 0
B30: Lør | C30: 2017-03-12 | M30: =ColTime(T!$H$5,T!$H$6,F30,G30) -> 0
B31: søn | C31: 2017-03-13 | M31: =ColTime(T!$H$5,T!$H$6,F31,G31) -> 0
A32: 11 | B32: man | C32: 2017-03-14 | M32: =ColTime(T!$H$5,T!$H$6,F32,G32) -> 0
A33: =IFERROR(IF(WEEKDAY(C33,11)=1,_xlfn.ISOWEEKNUM(C33),""),"") ->  | B33: =IFERROR(CHOOSE(WEEKDAY(C33,11),"man", "Tirs","Ons","Tors","FRE","Lør","søn"),"") ->  | C33: =IF(DAY(C32+1)>15,"",C32+1) ->  | M33: =ColTime(T!$H$5,T!$H$6,F33,G33) -> 0
A34: =IFERROR(IF(WEEKDAY(C34,11)=1,_xlfn.ISOWEEKNUM(C34),""),"") ->  | B34: =IFERROR(CHOOSE(WEEKDAY(C34,11),"man", "Tirs","Ons","Tors","FRE","Lør","søn"),"") ->  | C34: =IFERROR(C33+1,"") ->  | M34: =ColTime(T!$H$5,T!$H$6,F34,G34) -> 0
C35: =IFERROR(IF(DAY(C34+1)>15,"",C34+1),"") ->  | M35: =ColTime(T!$H$5,T!$H$6,F35,G35) -> 0
D36: SUM AF Tim./till.: | I36: =SUM(I5:I35) -> 1.125 | K36: =SUM(K5:K35) -> 0.01041666667 | M36: =SUM(M5:M35) -> 0.1770833333 | P36: =SUM(P5:P35) -> 0.1770833333 | Q36: =SUM(Q5:Q35) -> 0
C38: +/- Norm time overført fra sidste periode: | K38: +/- Norm time i periode: | P38: +/- Norm time til overførsel næste periode:
C39: +/- Afsp time overført fra sidste periode: | K39: Afsp. time i periode: | P39: +/- Afsp. Time i alt til overførsel: +/- afsp. tim.+ekstra tim.+OA tim.
C40: Kursus time i periode: | K40: Ekstra tim. I periode: | P40: Timer til udbetaling: A/N till. + evt. øverige timer
C41: Afholdt Ferie (I timer) i periode: | K41: Optj. OA tim. +50%: Time + 50% | P41: Saldo Ferie timer til overførsel:
C42: Afholdt FerieFri time i periode: | K42: Optj. OA tim. +100%: Time + 100% | P42: Saldo FerieFri time til overførsel:
C43: Optjent NY Ferie (dage) | K43: Afholdt NY ferie(dage) | P43: Saldo NY ferie (dage)
C44: DATO: ______________________ | K44: UNDERSKRIFT: _______________________________ ml 01.09.20

Sheet T
B4: Rulle Liste | D4: Rulle Liste | F4: Timer | H4: Coltime
D5: 07:45:00 | E5: 07:45:00 | F5: =SUM(Nov!I5:I35) -> 1.125 | H5: 17:00:00
B6: 07:45:00 | C6: 16:00:00 | D6: 08:00:00 | E6: 08:00:00 | H6: 1
C7: 18:00:00 | D7: 08:15:00 | E7: 08:15:00 | F7: Vagter
D8: 08:30:00 | E8: 08:30:00 | F8: =COUNT(Nov!I5:I35) -> 3
D9: 08:45:00 | E9: 08:45:00
D10: 09:00:00 | E10: 09:00:00 | F10: Vagter (S)
D11: 09:15:00 | E11: 09:15:00 | F11: =COUNTIF(Nov!I5:I35, 8.25) -> 0
D12: 09:30:00 | E12: 09:30:00
D13: 09:45:00 | E13: 09:45:00 | F13: Vagter (L)
D14: 10:00:00 | E14: 10:00:00 | F14: =COUNTIF(Nov!I5:I35, 10.25) -> 0
D15: 10:15:00 | E15: 10:15:00
D16: 10:30:00 | E16: 10:30:00
D17: 10:45:00 | E17: 10:45:00
D18: 11:00:00 | E18: 11:00:00
D19: 11:15:00 | E19: 11:15:00
D20: 11:30:00 | E20: 11:30:00
D21: 11:45:00 | E21: 11:45:00
D22: 12:00:00 | E22: 12:00:00
D23: 12:15:00 | E23: 12:15:00
D24: 12:30:00 | E24: 12:30:00
D25: 12:45:00 | E25: 12:45:00
D26: 13:00:00 | E26: 13:00:00
D27: 13:15:00 | E27: 13:15:00
D28: 13:30:00 | E28: 13:30:00
D29: 13:45:00 | E29: 13:45:00
D30: 14:00:00 | E30: 14:00:00
D31: 14:15:00 | E31: 14:15:00
D32: 14:30:00 | E32: 14:30:00
D33: 14:45:00 | E33: 14:45:00
D34: 15:00:00 | E34: 15:00:00
D35: 15:15:00 | E35: 15:15:00
D36: 15:30:00 | E36: 15:30:00
D37: 15:45:00 | E37: 15:45:00
D38: 16:00:00 | E38: 16:00:00
D39: 16:15:00 | E39: 16:15:00
E40: 16:30:00
E41: 16:45:00
E42: 17:00:00
E43: 17:15:00
E44: 17:30:00
E45: 17:45:00
E46: 18:00:00
E47: 18:15:00
E48: 18:30:00
E49: 18:45:00
E50: 19:00:00
E51: 19:15:00
E52: 19:30:00
E53: 19:45:00
E54: 20:00:00
